[Event "*** SCC Grand Prix: Titled Tuesday Blitz"]
[Site "Chess.com"]
[Date "2020.07.07"]
[Round "6"]
[White "Aguiar94"]
[Black "Beca95"]
[Result "0-1"]
[WhiteElo "2520"]
[BlackElo "2895"]
[TimeControl "180+1"]
[EndTime "11:06:44 PDT"]
[Termination "Beca95 won by resignation"]

1. e4 {[%clk 0:03:00.9]} 1... c6 {[%clk 0:02:59.1]} 2. d4 {[%clk 0:03:00.6]}
2... d5 {[%clk 0:03:00]} 3. e5 {[%clk 0:03:00.3]} 3... c5 {[%clk 0:02:59.6]} 4.
dxc5 {[%clk 0:03:00]} 4... e6 {[%clk 0:03:00.1]} 5. a3 {[%clk 0:02:58.4]} 5...
Bxc5 {[%clk 0:02:59.3]} 6. b4 {[%clk 0:02:57.5]} 6... Bb6 {[%clk 0:02:52.8]} 7.
Nf3 {[%clk 0:02:57.8]} 7... a5 {[%clk 0:02:50.7]} 8. b5 {[%clk 0:02:51]} 8...
Nd7 {[%clk 0:02:50.1]} 9. Bb2 {[%clk 0:02:29.2]} 9... Ne7 {[%clk 0:02:49.4]} 10.
Nbd2 {[%clk 0:02:29.6]} 10... a4 {[%clk 0:02:48.1]} 11. c4 {[%clk 0:02:26.8]}
11... O-O {[%clk 0:02:47.2]} 12. Bd3 {[%clk 0:02:21.4]} 12... Ng6 {[%clk
0:02:44.4]} 13. O-O {[%clk 0:02:15.8]} 13... Nc5 {[%clk 0:02:44.1]} 14. Bc2
{[%clk 0:02:10]} 14... Bd7 {[%clk 0:02:43.8]} 15. Rb1 {[%clk 0:01:38.3]} 15...
dxc4 {[%clk 0:02:40.8]} 16. Nxc4 {[%clk 0:01:39.2]} 16... Bxb5 {[%clk
0:02:38.4]} 17. Nxb6 {[%clk 0:01:37.2]} 17... Qxb6 {[%clk 0:02:36.8]} 18. Bd4
{[%clk 0:01:37.6]} 18... Qc6 {[%clk 0:02:33]} 19. Re1 {[%clk 0:01:36.5]} 19...
Rfd8 {[%clk 0:02:30.5]} 20. Qc1 {[%clk 0:01:31.6]} 20... Nd3 {[%clk 0:02:18.2]}
21. Bxd3 {[%clk 0:01:30.4]} 21... Bxd3 {[%clk 0:02:19.1]} 22. Rb6 {[%clk
0:01:26.6]} 22... Qxc1 {[%clk 0:02:18.1]} 23. Rxc1 {[%clk 0:01:27.5]} 23... Be4
{[%clk 0:02:18.5]} 24. Rb4 {[%clk 0:01:18.3]} 24... Rac8 {[%clk 0:02:08.5]} 25.
Rxc8 {[%clk 0:01:08.1]} 25... Rxc8 {[%clk 0:02:09.4]} 26. Be3 {[%clk 0:01:08.6]}
26... Bxf3 {[%clk 0:02:07.1]} 27. gxf3 {[%clk 0:01:09.5]} 27... Nxe5 {[%clk
0:02:06.8]} 28. f4 {[%clk 0:00:59.4]} 28... Nc4 {[%clk 0:02:05]} 29. Rxa4 {[%clk
0:00:56.9]} 29... h5 {[%clk 0:02:00.8]} 30. Rb4 {[%clk 0:00:52.5]} 30... Nxa3
{[%clk 0:01:56.9]} 31. Rxb7 {[%clk 0:00:51.7]} 31... Nc4 {[%clk 0:01:57.1]} 32.
Bd4 {[%clk 0:00:47]} 32... Nd6 {[%clk 0:01:55.9]} 33. Rd7 {[%clk 0:00:44.3]}
33... Nf5 {[%clk 0:01:55.8]} 34. Be5 {[%clk 0:00:40.8]} 34... Rc2 {[%clk
0:01:47.1]} 35. Rd8+ {[%clk 0:00:36.1]} 35... Kh7 {[%clk 0:01:46.9]} 36. Rd7
{[%clk 0:00:34.8]} 36... Kg6 {[%clk 0:01:47.1]} 37. Rd3 {[%clk 0:00:35]} 37...
f6 {[%clk 0:01:45]} 38. Bc3 {[%clk 0:00:35]} 38... Nh4 {[%clk 0:01:43.1]} 39.
Kf1 {[%clk 0:00:29.6]} 39... Kf5 {[%clk 0:01:41]} 40. Bd2 {[%clk 0:00:22.3]}
40... Ra2 {[%clk 0:01:28.3]} 41. Rd7 {[%clk 0:00:20.2]} 41... Nf3 {[%clk
0:01:04.5]} 42. Bc3 {[%clk 0:00:17.2]} 42... Nxh2+ {[%clk 0:01:03.5]} 43. Kg2
{[%clk 0:00:17.5]} 43... Ng4 {[%clk 0:01:03.6]} 44. Bd4 {[%clk 0:00:17.6]} 44...
Rd2 {[%clk 0:01:02.1]} 45. Rd8 {[%clk 0:00:17.1]} 45... Ne3+ {[%clk 0:00:57.2]}
46. Kf3 {[%clk 0:00:16.1]} 46... Nc2 {[%clk 0:00:57]} 47. Bxf6 {[%clk
0:00:15.3]} 47... Rxd8 {[%clk 0:00:50]} 48. Bxd8 {[%clk 0:00:16.2]} 48... Ne1+
{[%clk 0:00:48.5]} 49. Ke2 {[%clk 0:00:14.8]} 49... Ng2 {[%clk 0:00:48.5]} 50.
Kf3 {[%clk 0:00:15.2]} 50... Nxf4 {[%clk 0:00:48.6]} 51. Bc7 {[%clk 0:00:14.5]}
51... g5 {[%clk 0:00:48.6]} 52. Bb8 {[%clk 0:00:13.9]} 52... h4 {[%clk
0:00:48.4]} 53. Bc7 {[%clk 0:00:12.9]} 53... e5 {[%clk 0:00:48.8]} 54. Bd8
{[%clk 0:00:12.2]} 54... e4+ {[%clk 0:00:48.9]} 55. Ke3 {[%clk 0:00:12.6]} 55...
h3 {[%clk 0:00:49.3]} 0-1

[Event "*** SCC Grand Prix: Titled Tuesday Blitz"]
[Site "Chess.com"]
[Date "2020.07.07"]
[Round "6"]
[White "sri5996"]
[Black "MashaFromRussia"]
[Result "0-1"]
[WhiteElo "2286"]
[BlackElo "2437"]
[TimeControl "180+1"]
[EndTime "11:06:44 PDT"]
[Termination "MashaFromRussia won by checkmate"]

1. d4 {[%clk 0:03:00.9]} 1... Nf6 {[%clk 0:02:59.6]} 2. Nc3 {[%clk 0:02:57.9]}
2... d5 {[%clk 0:02:58.8]} 3. Bf4 {[%clk 0:02:57.9]} 3... e6 {[%clk 0:02:53.8]}
4. e3 {[%clk 0:02:57.9]} 4... Be7 {[%clk 0:02:50.9]} 5. Nf3 {[%clk 0:02:55.2]}
5... O-O {[%clk 0:02:51]} 6. Bd3 {[%clk 0:02:45.9]} 6... c5 {[%clk 0:02:49.5]}
7. dxc5 {[%clk 0:02:46.5]} 7... Bxc5 {[%clk 0:02:48.7]} 8. O-O {[%clk
0:02:46.8]} 8... Nc6 {[%clk 0:02:47.9]} 9. e4 {[%clk 0:02:46.2]} 9... dxe4
{[%clk 0:02:32.1]} 10. Nxe4 {[%clk 0:02:47.1]} 10... Nxe4 {[%clk 0:02:32.5]} 11.
Bxe4 {[%clk 0:02:48]} 11... Qf6 {[%clk 0:02:32.6]} 12. Qc1 {[%clk 0:02:42.7]}
12... Nd4 {[%clk 0:02:17.7]} 13. Nxd4 {[%clk 0:02:17.8]} 13... Qxd4 {[%clk
0:02:16.9]} 14. Bd3 {[%clk 0:02:04.2]} 14... e5 {[%clk 0:02:13.1]} 15. Be3
{[%clk 0:02:02.4]} 15... Qd6 {[%clk 0:02:12.6]} 16. Rd1 {[%clk 0:02:00.8]} 16...
Bxe3 {[%clk 0:01:58.8]} 17. Qxe3 {[%clk 0:01:54.5]} 17... Qf6 {[%clk 0:01:57.5]}
18. Qe4 {[%clk 0:01:48]} 18... g6 {[%clk 0:01:56.5]} 19. Re1 {[%clk 0:01:47.1]}
19... Re8 {[%clk 0:01:53.2]} 20. Rad1 {[%clk 0:01:47.3]} 20... Bf5 {[%clk
0:01:52.1]} 21. Qxb7 {[%clk 0:01:43.6]} 21... Rab8 {[%clk 0:01:45.4]} 22. Qxa7
{[%clk 0:01:42.2]} 22... Rxb2 {[%clk 0:01:31.1]} 23. Qa3 {[%clk 0:01:13.9]}
23... Reb8 {[%clk 0:01:24.5]} 24. Bxf5 {[%clk 0:01:05]} 24... Qxf5 {[%clk
0:01:24]} 25. Rd8+ {[%clk 0:00:58.6]} 25... Rxd8 {[%clk 0:01:17.3]} 26. Qxb2
{[%clk 0:00:58.9]} 26... Rd2 {[%clk 0:01:16.5]} 27. f3 {[%clk 0:00:38.3]} 27...
e4 {[%clk 0:00:50.7]} 28. Qc3 {[%clk 0:00:21.1]} 28... Qg5 {[%clk 0:00:37.2]}
29. Qc8+ {[%clk 0:00:16.8]} 29... Kg7 {[%clk 0:00:36.8]} 30. Qg4 {[%clk
0:00:15.9]} 30... Qc5+ {[%clk 0:00:28.3]} 31. Kh1 {[%clk 0:00:15.5]} 31... e3
{[%clk 0:00:26.6]} 32. Qe4 {[%clk 0:00:11.4]} 32... Qxc2 {[%clk 0:00:19.9]} 33.
Qxe3 {[%clk 0:00:11.2]} 33... Rxg2 {[%clk 0:00:18.5]} 34. Qe5+ {[%clk
0:00:11.3]} 34... f6 {[%clk 0:00:12.5]} 35. Qe7+ {[%clk 0:00:11.4]} 35... Kh6
{[%clk 0:00:12]} 36. Qe3+ {[%clk 0:00:11.6]} 36... g5 {[%clk 0:00:11.6]} 37. h4
{[%clk 0:00:02.5]} 37... Rh2+ {[%clk 0:00:10.9]} 38. Kg1 {[%clk 0:00:03]} 38...
Qg2# {[%clk 0:00:11.1]} 0-1

[Event "*** SCC Grand Prix: Titled Tuesday Blitz"]
[Site "Chess.com"]
[Date "2020.07.07"]
[Round "6"]
[White "eljanov"]
[Black "RobertoJBM"]
[Result "1-0"]
[WhiteElo "2882"]
[BlackElo "2707"]
[TimeControl "180+1"]
[EndTime "11:06:46 PDT"]
[Termination "eljanov won by resignation"]

1. e4 {[%clk 0:03:00.9]} 1... c6 {[%clk 0:02:55.4]} 2. d4 {[%clk 0:02:59.2]}
2... d5 {[%clk 0:02:56.3]} 3. exd5 {[%clk 0:02:58.2]} 3... cxd5 {[%clk
0:02:56.1]} 4. Bd3 {[%clk 0:02:58.4]} 4... Nc6 {[%clk 0:02:55.9]} 5. c3 {[%clk
0:02:58.4]} 5... Nf6 {[%clk 0:02:55.1]} 6. Bf4 {[%clk 0:02:57.6]} 6... g6 {[%clk
0:02:55]} 7. Nf3 {[%clk 0:02:54.1]} 7... Nh5 {[%clk 0:02:54.8]} 8. Be3 {[%clk
0:02:51.5]} 8... Qc7 {[%clk 0:02:54.4]} 9. Qd2 {[%clk 0:02:40.6]} 9... Bg7
{[%clk 0:02:53.9]} 10. h3 {[%clk 0:02:32.4]} 10... O-O {[%clk 0:02:52.6]} 11.
O-O {[%clk 0:02:28.5]} 11... Bd7 {[%clk 0:02:52.3]} 12. Na3 {[%clk 0:02:27.9]}
12... a6 {[%clk 0:02:52.1]} 13. Bh6 {[%clk 0:02:20.6]} 13... Rae8 {[%clk
0:02:46.3]} 14. Rfe1 {[%clk 0:02:14.7]} 14... e6 {[%clk 0:02:43]} 15. Nc2 {[%clk
0:02:10.3]} 15... b5 {[%clk 0:02:23.3]} 16. g4 {[%clk 0:01:53.3]} 16... Nf6
{[%clk 0:02:19.4]} 17. Ne5 {[%clk 0:01:45.5]} 17... Nxe5 {[%clk 0:02:14.1]} 18.
dxe5 {[%clk 0:01:39.3]} 18... Ne4 {[%clk 0:02:14.2]} 19. Bxe4 {[%clk 0:01:39.3]}
19... dxe4 {[%clk 0:02:15.1]} 20. Bxg7 {[%clk 0:01:38.1]} 20... Kxg7 {[%clk
0:02:15.1]} 21. Rxe4 {[%clk 0:01:38]} 21... Bc6 {[%clk 0:02:15.1]} 22. Re3
{[%clk 0:01:25.7]} 22... Rd8 {[%clk 0:02:13.2]} 23. Nd4 {[%clk 0:01:25.2]} 23...
Rd5 {[%clk 0:02:12.8]} 24. Rae1 {[%clk 0:01:18.3]} 24... Rfd8 {[%clk 0:02:11.4]}
25. b4 {[%clk 0:01:18.8]} 25... Bb7 {[%clk 0:02:09.8]} 26. Kh2 {[%clk
0:01:06.6]} 26... Qc4 {[%clk 0:01:52.4]} 27. Rd3 {[%clk 0:00:52.2]} 27... Qc7
{[%clk 0:01:44.7]} 28. Qf4 {[%clk 0:00:51.9]} 28... Qe7 {[%clk 0:01:37.2]} 29.
a3 {[%clk 0:00:50.2]} 29... h6 {[%clk 0:01:07.4]} 30. Kg3 {[%clk 0:00:48.1]}
30... R8d7 {[%clk 0:01:05.3]} 31. h4 {[%clk 0:00:47.8]} 31... Rd8 {[%clk
0:01:04.1]} 32. g5 {[%clk 0:00:43.5]} 32... h5 {[%clk 0:00:34.9]} 33. Qf6+
{[%clk 0:00:41.1]} 33... Qxf6 {[%clk 0:00:34.3]} 34. gxf6+ {[%clk 0:00:40.2]}
34... Kh6 {[%clk 0:00:33]} 35. Kf4 {[%clk 0:00:38.8]} 35... Rg8 {[%clk
0:00:28.7]} 36. Rg1 {[%clk 0:00:37]} 36... Rc8 {[%clk 0:00:28.3]} 37. Rgg3
{[%clk 0:00:35.9]} 37... Rc4 {[%clk 0:00:28.4]} 38. Rge3 {[%clk 0:00:35.3]}
38... Bc8 {[%clk 0:00:28.4]} 39. Kg3 {[%clk 0:00:35.1]} 39... Bb7 {[%clk
0:00:26.3]} 40. f4 {[%clk 0:00:33.3]} 40... a5 {[%clk 0:00:25.1]} 41. Nf3 {[%clk
0:00:33.4]} 41... Rxd3 {[%clk 0:00:23.6]} 42. Rxd3 {[%clk 0:00:34.3]} 42... Bxf3
{[%clk 0:00:24.1]} 43. Kxf3 {[%clk 0:00:34.2]} 43... a4 {[%clk 0:00:24.3]} 44.
Ke3 {[%clk 0:00:31.8]} 44... Kh7 {[%clk 0:00:22.3]} 45. Rd7 {[%clk 0:00:31]}
45... Rxc3+ {[%clk 0:00:22.3]} 46. Kd2 {[%clk 0:00:30.7]} 46... Rxa3 {[%clk
0:00:22.2]} 47. Rxf7+ {[%clk 0:00:31.1]} 47... Kh6 {[%clk 0:00:22.2]} 48. Rf8
{[%clk 0:00:28.5]} 48... Kh7 {[%clk 0:00:22.1]} 49. Rb8 {[%clk 0:00:29]} 49...
Rf3 {[%clk 0:00:17.4]} 50. f7 {[%clk 0:00:29.2]} 50... Rxf4 {[%clk 0:00:17.1]}
51. f8=Q {[%clk 0:00:29.7]} 1-0

[Event "*** SCC Grand Prix: Titled Tuesday Blitz"]
[Site "Chess.com"]
[Date "2020.07.07"]
[Round "6"]
[White "MrTattaglia"]
[Black "Sanan_Sjugirov"]
[Result "0-1"]
[WhiteElo "2920"]
[BlackElo "2834"]
[TimeControl "180+1"]
[EndTime "11:06:47 PDT"]
[Termination "Sanan_Sjugirov won by resignation"]

1. Nf3 {[%clk 0:02:58]} 1... Nf6 {[%clk 0:02:59.1]} 2. g3 {[%clk 0:02:55.7]}
2... b5 {[%clk 0:02:51.9]} 3. Bg2 {[%clk 0:02:53.9]} 3... Bb7 {[%clk 0:02:51.8]}
4. Na3 {[%clk 0:02:54.2]} 4... b4 {[%clk 0:02:38]} 5. Nc4 {[%clk 0:02:53.9]}
5... a5 {[%clk 0:02:18.8]} 6. O-O {[%clk 0:02:52.4]} 6... e6 {[%clk 0:02:16.1]}
7. d4 {[%clk 0:02:51.8]} 7... Be7 {[%clk 0:02:12]} 8. a3 {[%clk 0:02:48.6]} 8...
O-O {[%clk 0:02:07.8]} 9. Re1 {[%clk 0:02:46.7]} 9... d5 {[%clk 0:02:02.1]} 10.
Nce5 {[%clk 0:02:45.6]} 10... Nbd7 {[%clk 0:02:00.8]} 11. c4 {[%clk 0:02:35.6]}
11... bxc3 {[%clk 0:01:57.7]} 12. bxc3 {[%clk 0:02:36.5]} 12... Nxe5 {[%clk
0:01:40.8]} 13. Nxe5 {[%clk 0:02:34.9]} 13... Nd7 {[%clk 0:01:35.2]} 14. Rb1
{[%clk 0:02:32.2]} 14... Rb8 {[%clk 0:01:33.5]} 15. Nd3 {[%clk 0:02:29.8]} 15...
Ba6 {[%clk 0:01:17.1]} 16. Bf4 {[%clk 0:02:27.6]} 16... Rxb1 {[%clk 0:01:13.9]}
17. Qxb1 {[%clk 0:02:28.5]} 17... c5 {[%clk 0:01:13.2]} 18. a4 {[%clk
0:02:07.9]} 18... cxd4 {[%clk 0:01:10.2]} 19. cxd4 {[%clk 0:02:08.8]} 19... Qb6
{[%clk 0:01:05]} 20. Qa1 {[%clk 0:01:54.6]} 20... Bxd3 {[%clk 0:00:59.8]} 21.
exd3 {[%clk 0:01:55.5]} 21... Rc8 {[%clk 0:00:38.3]} 22. h4 {[%clk 0:01:30.9]}
22... Bb4 {[%clk 0:00:36]} 23. Rb1 {[%clk 0:01:20]} 23... Qa6 {[%clk 0:00:33.1]}
24. Bf1 {[%clk 0:01:00.7]} 24... h6 {[%clk 0:00:33.3]} 25. Be3 {[%clk
0:00:59.8]} 25... Nf6 {[%clk 0:00:32.3]} 26. Rc1 {[%clk 0:00:58.6]} 26... Ng4
{[%clk 0:00:28.9]} 27. Bf4 {[%clk 0:00:55.7]} 27... Rc6 {[%clk 0:00:23.6]} 28.
Be2 {[%clk 0:00:48.5]} 28... Nf6 {[%clk 0:00:23.8]} 29. Kg2 {[%clk 0:00:40.4]}
29... Qc8 {[%clk 0:00:23.5]} 30. Rxc6 {[%clk 0:00:39.5]} 30... Qxc6 {[%clk
0:00:24.4]} 31. Qb1 {[%clk 0:00:39.6]} 31... Qxa4 {[%clk 0:00:21.7]} 32. g4
{[%clk 0:00:38.7]} 32... Qd7 {[%clk 0:00:17.4]} 33. g5 {[%clk 0:00:38.4]} 33...
hxg5 {[%clk 0:00:17.9]} 34. hxg5 {[%clk 0:00:39.3]} 34... Nh7 {[%clk 0:00:18.5]}
35. Qc2 {[%clk 0:00:36.2]} 35... Nf8 {[%clk 0:00:17.2]} 36. Be3 {[%clk
0:00:33.5]} 36... Ng6 {[%clk 0:00:15.7]} 37. Qb3 {[%clk 0:00:30.7]} 37... Nh4+
{[%clk 0:00:14.4]} 38. Kf1 {[%clk 0:00:29.9]} 38... Nf5 {[%clk 0:00:15.3]} 39.
Bd1 {[%clk 0:00:30.4]} 39... Nxe3+ {[%clk 0:00:13.5]} 40. fxe3 {[%clk
0:00:31.3]} 40... g6 {[%clk 0:00:13.8]} 41. Qa4 {[%clk 0:00:31.2]} 41... Qd8
{[%clk 0:00:13.3]} 42. Kf2 {[%clk 0:00:28.7]} 42... Kg7 {[%clk 0:00:12.6]} 43.
Qc6 {[%clk 0:00:24.2]} 43... Qxg5 {[%clk 0:00:12.4]} 44. Qd7 {[%clk 0:00:24.1]}
44... Bd2 {[%clk 0:00:11.8]} 45. e4 {[%clk 0:00:22.1]} 45... Be3+ {[%clk
0:00:08.8]} 46. Kf3 {[%clk 0:00:22.5]} 46... Qf4+ {[%clk 0:00:07.8]} 47. Kg2
{[%clk 0:00:23]} 47... Qf2+ {[%clk 0:00:08]} 48. Kh3 {[%clk 0:00:23.5]} 48...
Bf4 {[%clk 0:00:08.1]} 0-1

[Event "*** SCC Grand Prix: Titled Tuesday Blitz"]
[Site "Chess.com"]
[Date "2020.07.07"]
[Round "6"]
[White "Rish_97"]
[Black "rpragchess"]
[Result "0-1"]
[WhiteElo "2661"]
[BlackElo "2815"]
[TimeControl "180+1"]
[EndTime "11:06:47 PDT"]
[Termination "rpragchess won by resignation"]

1. Nf3 {[%clk 0:03:00.2]} 1... Nf6 {[%clk 0:02:59.9]} 2. c4 {[%clk 0:02:58.2]}
2... g6 {[%clk 0:02:55.5]} 3. b4 {[%clk 0:02:54.4]} 3... Bg7 {[%clk 0:02:54.1]}
4. Bb2 {[%clk 0:02:54.8]} 4... O-O {[%clk 0:02:53.9]} 5. g3 {[%clk 0:02:54.6]}
5... d6 {[%clk 0:02:51.7]} 6. Bg2 {[%clk 0:02:54.7]} 6... e5 {[%clk 0:02:51.2]}
7. d3 {[%clk 0:02:54.3]} 7... a5 {[%clk 0:02:43.5]} 8. b5 {[%clk 0:02:53.9]}
8... Nbd7 {[%clk 0:02:42.8]} 9. O-O {[%clk 0:02:53.8]} 9... Nc5 {[%clk
0:02:40.8]} 10. Nfd2 {[%clk 0:02:53.9]} 10... a4 {[%clk 0:02:39.8]} 11. Ba3
{[%clk 0:02:32.7]} 11... e4 {[%clk 0:02:11.4]} 12. d4 {[%clk 0:02:31.7]} 12...
e3 {[%clk 0:02:11.3]} 13. dxc5 {[%clk 0:02:22.9]} 13... exf2+ {[%clk 0:02:10.9]}
14. Kh1 {[%clk 0:02:05.8]} 14... Ng4 {[%clk 0:02:07.1]} 15. Qc1 {[%clk
0:01:46.3]} 15... Ne3 {[%clk 0:00:37.6]} 16. Nc3 {[%clk 0:00:59.9]} 16... Nxf1
{[%clk 0:00:35.7]} 17. Nxf1 {[%clk 0:00:59.8]} 17... dxc5 {[%clk 0:00:34.7]} 18.
Bxc5 {[%clk 0:00:52.7]} 18... Re8 {[%clk 0:00:33.8]} 19. Bxf2 {[%clk 0:00:50.1]}
19... Qf6 {[%clk 0:00:17.1]} 20. Be1 {[%clk 0:00:39.6]} 20... c6 {[%clk
0:00:17.5]} 21. Rb1 {[%clk 0:00:38.3]} 21... Bf5 {[%clk 0:00:16.7]} 22. e4
{[%clk 0:00:38.4]} 22... Be6 {[%clk 0:00:15.9]} 23. bxc6 {[%clk 0:00:20.9]}
23... bxc6 {[%clk 0:00:16.8]} 24. Ne2 {[%clk 0:00:21.2]} 24... a3 {[%clk
0:00:09.7]} 25. Bc3 {[%clk 0:00:21]} 25... Qf2 {[%clk 0:00:09.6]} 26. Bxg7
{[%clk 0:00:21]} 26... Kxg7 {[%clk 0:00:10.5]} 27. Nc3 {[%clk 0:00:08.4]} 27...
Bxc4 {[%clk 0:00:09.7]} 28. Ne3 {[%clk 0:00:08.5]} 28... Bxa2 {[%clk 0:00:07.4]}
29. Ng4 {[%clk 0:00:07.9]} 29... Qd4 {[%clk 0:00:04.7]} 30. Nxa2 {[%clk
0:00:06.5]} 30... h5 {[%clk 0:00:05.1]} 31. Ne3 {[%clk 0:00:04.2]} 31... Reb8
{[%clk 0:00:04.3]} 32. Ra1 {[%clk 0:00:02.9]} 32... Rb2 {[%clk 0:00:03.9]} 33.
Nc3 {[%clk 0:00:03.2]} 33... Qd3 {[%clk 0:00:03.9]} 34. Rxa3 {[%clk 0:00:02.3]}
34... Rxa3 {[%clk 0:00:03.6]} 35. Qxb2 {[%clk 0:00:02.8]} 35... Qxc3 {[%clk
0:00:03.5]} 36. Qxc3+ {[%clk 0:00:03.5]} 36... Rxc3 {[%clk 0:00:04.4]} 37. h4
{[%clk 0:00:04.4]} 37... Rxe3 {[%clk 0:00:04.6]} 0-1

[Event "*** SCC Grand Prix: Titled Tuesday Blitz"]
[Site "Chess.com"]
[Date "2020.07.07"]
[Round "6"]
[White "DarkAlekhine"]
[Black "turayev_shahruh17"]
[Result "1-0"]
[WhiteElo "2633"]
[BlackElo "2481"]
[TimeControl "180+1"]
[EndTime "11:06:47 PDT"]
[Termination "DarkAlekhine won on time"]

1. e4 {[%clk 0:03:00.9]} 1... e6 {[%clk 0:03:00.4]} 2. d4 {[%clk 0:03:00.1]}
2... d5 {[%clk 0:03:01]} 3. Nc3 {[%clk 0:03:00.4]} 3... Bb4 {[%clk 0:03:01.6]}
4. e5 {[%clk 0:03:00.4]} 4... Ne7 {[%clk 0:03:02.2]} 5. a3 {[%clk 0:03:00.1]}
5... Bxc3+ {[%clk 0:03:02.7]} 6. bxc3 {[%clk 0:03:01]} 6... c5 {[%clk
0:03:03.6]} 7. a4 {[%clk 0:03:01.6]} 7... Qc7 {[%clk 0:03:02.2]} 8. Nf3 {[%clk
0:02:59.7]} 8... h6 {[%clk 0:02:59]} 9. Bd3 {[%clk 0:02:56.2]} 9... b6 {[%clk
0:02:58.9]} 10. O-O {[%clk 0:02:55.2]} 10... Ba6 {[%clk 0:02:58.4]} 11. Ba3
{[%clk 0:02:42.4]} 11... Bxd3 {[%clk 0:02:57.1]} 12. cxd3 {[%clk 0:02:42.7]}
12... O-O {[%clk 0:02:57.4]} 13. Nd2 {[%clk 0:02:35.2]} 13... Nd7 {[%clk
0:02:49.5]} 14. Nb3 {[%clk 0:02:34.4]} 14... Rfc8 {[%clk 0:02:46.8]} 15. Rc1
{[%clk 0:02:28.5]} 15... Qb7 {[%clk 0:02:32.3]} 16. dxc5 {[%clk 0:01:34.1]}
16... bxc5 {[%clk 0:02:26.7]} 17. d4 {[%clk 0:01:33.6]} 17... c4 {[%clk
0:02:12.8]} 18. Nd2 {[%clk 0:01:09]} 18... Nf8 {[%clk 0:02:02.1]} 19. Rb1 {[%clk
0:01:07.7]} 19... Qc6 {[%clk 0:02:01.2]} 20. Bxe7 {[%clk 0:01:07]} 20... Ng6
{[%clk 0:01:47.9]} 21. Bc5 {[%clk 0:01:06.2]} 21... Nxe5 {[%clk 0:01:44.5]} 22.
dxe5 {[%clk 0:01:05.4]} 22... Qxc5 {[%clk 0:01:44.9]} 23. Nf3 {[%clk 0:01:05.8]}
23... Qa3 {[%clk 0:01:45]} 24. Qc2 {[%clk 0:01:03.2]} 24... Rab8 {[%clk
0:01:45.4]} 25. Nd4 {[%clk 0:01:01.6]} 25... a6 {[%clk 0:01:37.1]} 26. g3 {[%clk
0:01:00.3]} 26... Kh8 {[%clk 0:01:28.8]} 27. h4 {[%clk 0:00:58.7]} 27... Kg8
{[%clk 0:01:28.1]} 28. Kg2 {[%clk 0:00:59.1]} 28... Kh8 {[%clk 0:01:27.7]} 29.
Ra1 {[%clk 0:00:57.6]} 29... Qe7 {[%clk 0:01:26.8]} 30. Rfb1 {[%clk 0:00:56.5]}
30... Qc7 {[%clk 0:01:26.7]} 31. Qe2 {[%clk 0:00:53.2]} 31... Kg8 {[%clk
0:01:22.6]} 32. Qe3 {[%clk 0:00:36.6]} 32... Qd7 {[%clk 0:01:14.4]} 33. a5
{[%clk 0:00:32]} 33... Qc7 {[%clk 0:01:13.5]} 34. g4 {[%clk 0:00:31.9]} 34...
Qd8 {[%clk 0:01:08.7]} 35. g5 {[%clk 0:00:31.1]} 35... hxg5 {[%clk 0:01:07.8]}
36. hxg5 {[%clk 0:00:32]} 36... Rxb1 {[%clk 0:01:05.9]} 37. Rxb1 {[%clk
0:00:31.8]} 37... Qxa5 {[%clk 0:01:06.3]} 38. Rh1 {[%clk 0:00:28.7]} 38... Qd8
{[%clk 0:00:55]} 39. Qf4 {[%clk 0:00:21.2]} 39... a5 {[%clk 0:00:17.7]} 40. Qh4
{[%clk 0:00:21.1]} 1-0

[Event "*** SCC Grand Prix: Titled Tuesday Blitz"]
[Site "Chess.com"]
[Date "2020.07.07"]
[Round "6"]
[White "queen_iryna"]
[Black "RoelandPruijssers"]
[Result "0-1"]
[WhiteElo "2251"]
[BlackElo "2612"]
[TimeControl "180+1"]
[EndTime "11:06:47 PDT"]
[Termination "RoelandPruijssers won by checkmate"]

1. d4 {[%clk 0:03:00.9]} 1... f5 {[%clk 0:02:43.6]} 2. Nc3 {[%clk 0:03:00.4]}
2... Nf6 {[%clk 0:02:42.9]} 3. Bg5 {[%clk 0:03:00.3]} 3... d5 {[%clk 0:02:40.4]}
4. Bxf6 {[%clk 0:03:01]} 4... exf6 {[%clk 0:02:39]} 5. e3 {[%clk 0:03:01.9]}
5... Be6 {[%clk 0:02:36.5]} 6. Bd3 {[%clk 0:03:01.1]} 6... Qd7 {[%clk
0:02:33.5]} 7. Qf3 {[%clk 0:03:00.6]} 7... Nc6 {[%clk 0:02:33.3]} 8. a3 {[%clk
0:02:59.8]} 8... h5 {[%clk 0:02:26.1]} 9. Nge2 {[%clk 0:02:58.8]} 9... h4 {[%clk
0:02:21]} 10. Nf4 {[%clk 0:02:56.2]} 10... Ne7 {[%clk 0:02:12.3]} 11. Nxe6
{[%clk 0:02:06.5]} 11... Qxe6 {[%clk 0:02:11.4]} 12. Nb5 {[%clk 0:02:07.4]}
12... Qd7 {[%clk 0:02:03.3]} 13. Qf4 {[%clk 0:02:07.1]} 13... Kd8 {[%clk
0:01:54.7]} 14. c4 {[%clk 0:01:55.8]} 14... h3 {[%clk 0:01:42.2]} 15. Rg1 {[%clk
0:01:29.2]} 15... hxg2 {[%clk 0:01:30.8]} 16. c5 {[%clk 0:01:19.3]} 16... g5
{[%clk 0:01:25.5]} 17. Qg3 {[%clk 0:01:18.3]} 17... f4 {[%clk 0:01:22.9]} 18.
exf4 {[%clk 0:01:11.6]} 18... Rh3 {[%clk 0:01:21.7]} 19. Qxg2 {[%clk 0:00:54.7]}
19... Rxd3 {[%clk 0:01:18]} 20. a4 {[%clk 0:00:54]} 20... Nf5 {[%clk 0:00:58.4]}
21. Ke2 {[%clk 0:00:46.8]} 21... Rb3 {[%clk 0:00:54.3]} 22. Rab1 {[%clk
0:00:36.9]} 22... Nh4 {[%clk 0:00:48.4]} 23. Qg4 {[%clk 0:00:33.4]} 23... Qe8+
{[%clk 0:00:22]} 24. Kd1 {[%clk 0:00:29.4]} 24... Nf3 {[%clk 0:00:20.9]} 25. Qf5
{[%clk 0:00:22.4]} 25... Qe4 {[%clk 0:00:06.7]} 26. Qxe4 {[%clk 0:00:20.7]}
26... dxe4 {[%clk 0:00:06.2]} 27. Rg3 {[%clk 0:00:20.8]} 27... gxf4 {[%clk
0:00:05.4]} 28. Rg8 {[%clk 0:00:19.8]} 28... Kd7 {[%clk 0:00:05.8]} 29. d5
{[%clk 0:00:19.1]} 29... a6 {[%clk 0:00:04.7]} 30. Nc3 {[%clk 0:00:17.8]} 30...
Rb4 {[%clk 0:00:04.3]} 31. Ke2 {[%clk 0:00:16.7]} 31... Re8 {[%clk 0:00:04.4]}
32. a5 {[%clk 0:00:15.2]} 32... Bxc5 {[%clk 0:00:03.6]} 33. Rg7+ {[%clk
0:00:14.5]} 33... Kd6 {[%clk 0:00:04]} 34. Rg6 {[%clk 0:00:12.9]} 34... Ke5
{[%clk 0:00:04.1]} 35. Rg7 {[%clk 0:00:12.6]} 35... Kf5 {[%clk 0:00:04.3]} 36.
Rh7 {[%clk 0:00:12.4]} 36... Bd4 {[%clk 0:00:04.2]} 37. Rh5+ {[%clk 0:00:12.3]}
37... Kg6 {[%clk 0:00:04.6]} 38. Rh3 {[%clk 0:00:11.7]} 38... Bxc3 {[%clk
0:00:05.1]} 39. Rc1 {[%clk 0:00:08.3]} 39... Rxb2+ {[%clk 0:00:05]} 40. Kf1
{[%clk 0:00:08.7]} 40... Kf5 {[%clk 0:00:05.4]} 41. Rxc3 {[%clk 0:00:07.8]}
41... Rb1+ {[%clk 0:00:05.7]} 42. Ke2 {[%clk 0:00:07.2]} 42... Re1# {[%clk
0:00:05.9]} 0-1